[Event "Icelandic Team-ch Kvika Leagu 2023-24"]
[Site "Reykjavik"]
[Date "2024.03.02"]
[Round "7"]
[White "Gunnarsson, Arnar"]
[Black "Thorfinnsson, Bragi"]
[Result "1-0"]
[ECO "A21"]
[WhiteElo "2410"]
[BlackElo "2397"]
[Annotator "RC"]
[PlyCount "81"]
[EventDate "2024.02.29"]
[EventType "team-tourn"]
[EventCountry "ISL"]
[SourceTitle "playchess.com"]
[Source "ChessBase"]
[SourceQuality "1"]
[TimeControl "40/5400+30:900+30"]

1. c4 {[%emt 0:00:30]} e5 {[%emt 0:02:52]} 2. Nc3 {[%emt 0:00:23]} Bb4 {[%emt 0:01:48]} 3. Nd5 {[%emt 0:00:21]} Be7 {[%emt 0:00:15]} 4. Nf3 {[%emt 0:00:43]} c6 {[%emt 0:03:55]} 5. Nc3 {[%emt 0:04:09]} d6 {[%emt 0:09:59]} 6. d4 {[%emt 0:00:32]} Nd7 {[%emt 0:00:20]} 7. g3 {[%emt 0:01:24]} Ngf6 {[%emt 0:02:39]} 8. Bg2 {[%emt 0:02:34]} O-O {[%emt 0:05:38]} 9. O-O {[%emt 0:02:57]} Qc7 {[%emt 0:04:09]} 10. Qc2 {[%emt 0:02:34]} Re8 {[%emt 0:03:43]} 11. b3 {[%emt 0:06:26]} Bf8 {[%emt 0:03:12]} 12. e4 {[%emt 0:01:07]} b5 {[%emt 0:02:12]} 13. cxb5 {[%emt 0:49:25]} cxb5 {[%emt 0:00:20]} 14. dxe5 {[%emt 0:01:39]} dxe5 {[%emt 0:00:58]} 15. Qb2 {[%emt 0:00:07]} b4 {[%emt 0:04:11]} 16. Nd5 {[%emt 0:02:09]} Nxd5 {[%emt 0:01:18]} 17. exd5 {[%emt 0:00:04]} Bb7 {[%emt 0:01:44]} 18. Rd1 {[%emt 0:03:35]} Nf6 {[%emt 0:07:41]} 19. Nh4 {[%emt 0:02:28]} Rad8 {[%emt 0:09:25]} 20. Bg5 {[%emt 0:00:49]} Qb6 {[%emt 0:01:47]} 21. Rac1 {[%emt 0:12:08]} Rxd5 {[%emt 0:02:45]} 22. Bxf6 {[%emt 0:01:14]} Rxd1+ {[%emt 0:01:08]} 23. Rxd1 {[%emt 0:00:05]} Bxg2 {[%emt 0:01:53]} 24. Bxg7 {[%emt 0:00:22]} Bxg7 {[%emt 0:01:59]} 25. Kxg2 {[%emt 0:00:34]} Qc6+ {[%emt 0:03:24]} 26. Kg1 {[%emt 0:00:35]} Qe4 {[%emt 0:02:07]} 27. Qd2 {[%emt 0:00:49]} a5 {[%emt 0:02:13]} 28. Qd7 {[%emt 0:00:46]} Rf8 {[%emt 0:00:39]} 29. Nf5 {[%emt 0:02:29]} h5 {[%emt 0:03:46]} 30. h4 {[%emt 0:00:48]} Bf6 {[%emt 0:00:59]} 31. Qd3 {[%emt 0:00:30]} Qxd3 {[%emt 0:01:09]} 32. Rxd3 {[%emt 0:00:06]} Rd8 {[%emt 0:00:03]} 33. Rxd8+ {[%emt 0:00:41]} Bxd8 {[%emt 0:00:03]} 34. f3 {[%emt 0:00:20]} Kh7 {[%emt 0:02:15]} 35. Kf2 {[%emt 0:00:27]} Kg6 {[%emt 0:00:32]} 36. g4 {[%emt 0:00:24]} Bb6+ {[%emt 0:04:05]} 37. Ke2 {[%emt 0:01:26]} e4 {[%emt 0:05:25]} 38. Ne7+ {[%emt 0:00:08]} Kg7 {[%emt 0:00:32]} 39. gxh5 {[%emt 0:00:31]} Kh6 {[%emt 0:01:41]} 40. fxe4 {[%emt 0:00:29]} Kxh5 {[%emt 0:00:00]} 41. Nf5 {[%emt 0:00:26]} 1-0

[Event "Icelandic Team-ch Kvika Leagu 2023-24"]
[Site "Reykjavik"]
[Date "2024.03.02"]
[Round "7"]
[White "Petursson, Margeir"]
[Black "Steingrimsson, Hedinn"]
[Result "0-1"]
[ECO "E01"]
[WhiteElo "2408"]
[BlackElo "2477"]
[Annotator "RC"]
[PlyCount "78"]
[EventDate "2024.02.29"]
[EventType "team-tourn"]
[EventCountry "ISL"]
[SourceTitle "playchess.com"]
[Source "ChessBase"]
[SourceQuality "1"]
[TimeControl "40/5400+30:900+30"]

1. d4 {[%emt 0:00:05]} d5 {[%emt 0:07:25]} 2. c4 {[%emt 0:00:19]} c6 {[%emt 0:00:04]} 3. Nf3 {[%emt 0:00:21]} Nf6 {[%emt 0:00:06]} 4. Nc3 {[%emt 0:00:06]} dxc4 {[%emt 0:00:19]} 5. g3 {[%emt 0:02:35]} e6 {[%emt 0:02:29]} 6. Bg2 {[%emt 0:01:01]} Nbd7 {[%emt 0:00:17]} 7. O-O {[%emt 0:01:20]} b5 {[%emt 0:00:10]} 8. e4 {[%emt 0:04:50]} b4 {[%emt 0:02:43]} 9. e5 {[%emt 0:02:57]} Nd5 {[%emt 0:00:09]} 10. Ne4 {[%emt 0:00:25]} Be7 {[%emt 0:00:04]} 11. Bg5 {[%emt 0:03:03]} O-O {[%emt 0:09:48]} 12. Qc2 {[%emt 0:03:50]} Ba6 {[%emt 0:01:40]} 13. Rfe1 {[%emt 0:06:35]} Rb8 {[%emt 0:07:02]} 14. h4 {[%emt 0:09:12]} h6 {[%emt 0:05:56]} 15. Bxe7 {[%emt 0:03:21]} Qxe7 {[%emt 0:00:07]} 16. Nfd2 {[%emt 0:02:04]} c3 {[%emt 0:12:31]} 17. bxc3 {[%emt 0:01:55]} bxc3 {[%emt 0:00:04]} 18. Nb3 {[%emt 0:01:02]} Rb4 {[%emt 0:20:22]} 19. Rec1 {[%emt 0:19:27]} Bc4 {[%emt 0:05:53]} 20. Nxc3 {[%emt 0:02:44]} Bxb3 {[%emt 0:04:19]} 21. axb3 {[%emt 0:00:08]} Rxd4 {[%emt 0:00:02]} 22. Rxa7 {[%emt 0:01:51]} Nb4 {[%emt 0:01:42]} 23. Qe2 {[%emt 0:08:39]} Qc5 {[%emt 0:00:11]} 24. Rb7 {[%emt 0:05:29]} Nd3 {[%emt 0:02:24]} 25. Rc2 {[%emt 0:01:38]} Qxe5 {[%emt 0:00:45]} 26. Bxc6 {[%emt 0:02:43]} N7c5 {[%emt 0:02:02]} 27. Rb5 {[%emt 0:05:02]} Qd6 {[%emt 0:01:54]} 28. Bg2 {[%emt 0:02:33]} Nb4 {[%emt 0:01:43]} 29. Rb2 {[%emt 0:01:02]} Ncd3 {[%emt 0:00:56]} 30. Rb1 {[%emt 0:00:52]} Rc8 {[%emt 0:02:03]} 31. Ne4 {[%emt 0:01:05]} Qd8 {[%emt 0:02:39]} 32. Ra1 {[%emt 0:02:20]} Rd7 {[%emt 0:03:52]} 33. Qh5 {[%emt 0:01:38]} Nc2 {[%emt 0:01:48]} 34. Ra6 {[%emt 0:02:38]} Nde1 {[%emt 0:01:56]} 35. Rba5 {[%emt 0:01:37]} Rd1 {[%emt 0:01:26]} 36. Kh2 {[%emt 0:00:31]} Nxg2 {[%emt 0:00:58]} 37. Kxg2 {[%emt 0:00:55]} Qd3 {[%emt 0:00:22]} 38. Nd6 {[%emt 0:01:03]} Qf1+ {[%emt 0:00:17]} 39. Kf3 {[%emt 0:00:03]} Rc3+ {[%emt 0:00:57]} 0-1

[Event "Icelandic Team-ch Kvika Leagu 2023-24"]
[Site "Reykjavik"]
[Date "2024.03.02"]
[Round "7"]
[White "Domalchuk-Jonasson, Aleksandr"]
[Black "Laurusas, Tomas"]
[Result "1-0"]
[ECO "D94"]
[WhiteElo "2355"]
[BlackElo "2586"]
[Annotator "TA"]
[PlyCount "175"]
[EventDate "2024.02.29"]
[EventType "team-tourn"]
[EventCountry "ISL"]
[SourceTitle "playchess.com"]
[Source "ChessBase"]
[SourceQuality "1"]
[TimeControl "40/5400+30:900+30"]

{[%evp 14,175,34,23,35,16,20,22,10,12,20,9,28,37,38,9,8,15,10,12,19,15,22,10,20,19,30,32,27,28,24,19,25,-21,0,-9,16,6,18,18,53,0,6,0,0,-36,0,-41,37,20,62,58,66,62,68,66,70,66,187,78,76,68,69,70,74,80,106,86,87,81,91,85,108,106,124,103,112,103,121,63,100,107,109,93,84,95,85,97,102,91,101,114,116,116,103,102,89,0,91,90,97,90,94,53,255,264,345,251,272,223,340,318,353,361,485,481,488,395,395,388,395,391,395,395,395,391,388,387,379,363,385,381,379,402,523,527,487,487,710,662,591,575,549,261,561,443,577,567,543,543,596,582,708,746,746,746,738,732,7191,5404,10675,6183,29964,5807]} 1. d4 {[%emt 0:00:11]} d5 {[%emt 0:00:07]} 2. c4 {[%emt 0:00:11]} c6 {[%emt 0:00:05]} 3. Nc3 {[%emt 0:00:22]} Nf6 {[%emt 0:00:45]} 4. e3 {[%emt 0:00:10]} g6 {[%emt 0:02:26]} 5. Nf3 {[%emt 0:00:16]} Bg7 {[%emt 0:00:08]} 6. Be2 {[%emt 0:00:17]} O-O {[%emt 0:00:16]} 7. O-O {[%emt 0:00:05]} e6 {[%emt 0:04:27]} 8. b3 {[%emt 0:05:05]} Nbd7 {[%emt 0:01:49]} 9. Bb2 {[%emt 0:02:01]} b6 {[%emt 0:02:33]} 10. Qc2 {[%emt 0:04:48]} Bb7 {[%emt 0:01:01] The position is equal.} 11. Rfd1 {[%emt 0:02:56]} Re8 {[%emt 0:10:17]} 12. Rac1 {[%emt 0:08:21]} Qc7 {[%emt 0:11:16] [#]} 13. Ne5 $1 {[%emt 0:08:37]} Rac8 {[%emt 0:05:37]} 14. Qb1 {[%emt 0:12:52]} Red8 {[%emt 0:06:37]} (14... Nxe5 15. dxe5 Nd7 (15... Qxe5 $2 16. Nxd5 $18) 16. cxd5 Qxe5 17. dxe6 Qxe6 18. Ne4 Bxb2 19. Qxb2 Qxe4 20. Rxd7) 15. Bf3 {[%emt 0:12:14]} Qb8 {[%emt 0:03:22]} 16. Nxd7 {[%emt 0:09:19]} Rxd7 {[%emt 0:01:10]} 17. Ne2 {[%emt 0:03:06]} Rdd8 {[%emt 0:14:33]} 18. h3 {[%emt 0:02:31]} Ba6 {[%emt 0:01:22]} 19. Nf4 {[%emt 0:02:28]} Nd7 {[%emt 0:08:56]} 20. Nd3 {[%emt 0:07:15]} Bb7 {[%emt 0:07:45]} 21. Rc2 {[%emt 0:08:54]} a5 {[%emt 0:03:00]} 22. a4 {[%emt 0:01:27]} Ba6 {[%emt 0:00:21]} 23. e4 {[%emt 0:02:10]} (23. Nf4 $142) 23... dxe4 {[%emt 0:08:35]} 24. Bxe4 {[%emt 0:00:02]} Bb7 {[%emt 0:00:57]} 25. Rcd2 {[%emt 0:02:48]} Qc7 {[%emt 0:01:47]} 26. Bf3 {[%emt 0:01:00]} b5 {[%emt 0:00:49]} 27. axb5 {[%emt 0:02:00]} (27. cxb5 cxb5 28. d5 Bxb2 29. Qxb2 Bxd5 $16) (27. Nc5 $14 bxc4 28. bxc4) 27... cxb5 $11 {[%emt 0:00:02]} 28. Bxb7 {[%emt 0:00:24]} Qxb7 {[%emt 0:00:02]} 29. c5 {[%emt 0:01:13][%cal Od4d5]} Nb8 {[%emt 0:00:56][%cal Ob7e4]} 30. Ne1 {[%emt 0:00:56]} Rd5 {[%emt 0:00:13]} ({Better is} 30... Na6 $15) 31. Nc2 $1 $14 {[%emt 0:00:30]} Rcd8 {[%emt 0:03:25]} 32. Ne3 {[%emt 0:00:09]} R5d7 {[%emt 0:00:32]} 33. Qa1 {[%emt 0:00:50]} h5 {[%emt 0:00:31]} 34. Qxa5 {[%emt 0:00:51]} Nc6 {[%emt 0:00:01]} 35. Qa1 {[%emt 0:00:18]} Ne7 {[%emt 0:00:24] [#]} (35... Qa7 $14) 36. Qc1 {[%emt 0:01:15]} (36. c6 $1 $18 {[%cal Rc6b7] and the rest is easy.} Qxc6 (36... Nxc6 $2 {is the wrong capture.} 37. d5 $18) 37. d5 Nxd5 38. Rxd5 (38. Bxg7 $2 {perishes.} Nxe3 39. f3 Rxd2 $19) (38. Nxd5 Ra8 $11) 38... exd5 (38... Rxd5 $2 39. Nxd5 exd5 40. Bxg7 $18) 39. Bxg7) 36... Qc6 $16 {[%emt 0:00:24]} 37. Qc2 {[%emt 0:00:31]} Nd5 {[%emt 0:00:26]} 38. Qe4 {[%emt 0:00:19]} Qc7 {[%emt 0:01:29]} 39. Qf3 {[%emt 0:00:46]} Bh6 {[%emt 0:00:32]} 40. h4 {[%emt 0:00:00]} Bg7 {[%emt 0:00:00]} 41. g3 {[%emt 0:04:23]} Qc6 {[%emt 0:02:30]} 42. Nc2 {[%emt 0:03:45]} Qc7 {[%emt 0:01:47]} 43. Ra1 {[%emt 0:02:20]} Ne7 {[%emt 0:00:47]} 44. Qe2 {[%emt 0:02:24] White is more active.} Qb7 {[%emt 0:01:48]} 45. Ra5 {[%emt 0:00:46]} Rb8 {[%emt 0:00:00]} 46. Na3 {[%emt 0:00:24]} (46. Nb4 $16) 46... b4 {[%emt 0:00:16]} 47. Rb5 {[%emt 0:01:52]} Qc8 {[%emt 0:00:02]} 48. Rxb8 {[%emt 0:00:35]} Qxb8 {[%emt 0:00:01]} 49. Nc4 {[%emt 0:00:57]} Nf5 {[%emt 0:00:33]} 50. Qe4 {[%emt 0:00:49]} Qc7 {[%emt 0:02:18]} 51. Kg2 {[%emt 0:00:43]} Kh7 {[%emt 0:00:28]} 52. Ne3 {[%emt 0:01:23]} Ne7 {[%emt 0:00:41][%cal Oe6e5]} 53. Rd1 {[%emt 0:00:14]} Rd8 {[%emt 0:00:26]} 54. Nc4 {[%emt 0:01:19]} Nf5 {[%emt 0:00:12] Against Nd6} 55. Ne3 {[%emt 0:00:20][%cal Bc4e3,Be3c2,Bc2b4,Bb4c2][%mdl 32]} Ne7 $1 {[%emt 0:00:08]} 56. Qf3 {[%emt 0:00:35]} Kg8 {[%emt 0:00:10]} 57. Ba1 {[%emt 0:00:43]} Qa7 {[%emt 0:07:12]} 58. Nc2 {[%emt 0:00:35]} Qa2 $2 {[%emt 0:00:28]} (58... Nd5 $14) 59. Nxb4 $18 {[%emt 0:00:25]} Qa3 {[%emt 0:00:19]} 60. Nc2 {[%emt 0:00:33]} Qa2 {[%emt 0:00:01]} 61. Qd3 {[%emt 0:00:49]} Rb8 {[%emt 0:00:24]} (61... Nd5 {is a better defense.} 62. b4 Kh7) 62. b4 {[%emt 0:00:14]} Nd5 {[%emt 0:00:49]} 63. b5 {[%emt 0:00:26]} Rxb5 {[%emt 0:00:34]} 64. Qxb5 {[%emt 0:00:07]} Qxc2 {[%emt 0:00:04]} 65. Re1 {[%emt 0:00:38] Dodges Ne3+} Bf6 {[%emt 0:00:23]} 66. Qe2 {[%emt 0:00:33]} Qa4 {[%emt 0:00:10]} 67. Qd2 {[%emt 0:00:32]} Bd8 {[%emt 0:00:30]} 68. Rb1 {[%emt 0:00:26][%cal Ob1b8] Hoping for Rb8!} Kg7 {[%emt 0:00:41]} 69. Bc3 {[%emt 0:00:33]} Qa3 {[%emt 0:01:21]} 70. Bb4 {[%emt 0:00:16]} Qa4 {[%emt 0:00:02]} 71. Qb2 {[%emt 0:00:45]} Bf6 {[%emt 0:00:07]} 72. Kg1 {[%emt 0:00:25]} Kg8 {[%emt 0:00:50]} 73. Qb3 {[%emt 0:00:37]} Qb5 {[%emt 0:00:46]} 74. Bd2 {[%emt 0:00:51]} Qe2 {[%emt 0:00:15]} 75. Be3 {[%emt 0:00:10]} Qg4 {[%emt 0:01:08]} (75... Kh7 $142 76. Qd1 Qa2) 76. c6 {[%emt 0:00:26]} Kg7 {[%emt 0:00:00]} 77. Rc1 {[%emt 0:00:57] And now c7 would win.} Bd8 {[%emt 0:00:17][%cal Bf6d8,Bd8c7,Bc7b6][%mdl 32]} 78. Qd1 {[%emt 0:00:26]} (78. Qd3 $142) 78... Qe4 $2 {[%emt 0:00:20]} (78... Nxe3 {keeps fighting.} 79. Qxg4 (79. fxe3 Qxg3+ 80. Kf1 Qxe3 $11) 79... Nxg4) 79. Qc2 {[%emt 0:00:22]} Qg4 {[%emt 0:00:36][%cal Od5e3]} 80. Qd3 {[%emt 0:00:21]} Bc7 {[%emt 0:00:59]} 81. Bd2 {[%emt 0:00:09]} Bb6 {[%emt 0:00:29]} 82. Re1 {[%emt 0:00:22]} Nf6 {[%emt 0:01:17]} 83. Bf4 {[%emt 0:00:15] Black must now prevent Be5.} Nd5 {[%emt 0:00:26]} 84. Qe4 {[%emt 0:00:30]} Kg8 {[%emt 0:00:57]} 85. Kg2 {[%emt 0:00:42]} Bc7 {[%emt 0:01:45]} 86. Bxc7 {[%emt 0:00:20] Bd6 is the strong threat.} Qxe4+ {[%emt 0:00:05]} 87. Rxe4 {[%emt 0:00:03]} Nxc7 {[%emt 0:00:05] [#]} 88. d5 $1 {[%emt 0:00:55] Weighted Error Value: White=0.16 (very precise) /Black=0.20 (precise) .  Loses game:     	---       	Black=1      Mistake:       	White=5     	Black=5      Inaccurate:     	White=4     	Black=9      OK:         	White=26    	Black=23     Best:        	White=2     	Black=4      Strong:       	White=1     	Black=1} 1-0

[Event "Icelandic Team-ch Kvika Leagu 2023-24"]
[Site "Reykjavik"]
[Date "2024.03.02"]
[Round "7"]
[White "Thorfinnsson, Bjorn"]
[Black "Hansen, Soren Bech"]
[Result "1-0"]
[ECO "A80"]
[WhiteElo "2353"]
[BlackElo "2213"]
[Annotator "ChessBase"]
[PlyCount "93"]
[EventDate "2024.02.29"]
[EventType "team-tourn"]
[EventCountry "ISL"]
[SourceTitle "playchess.com"]
[Source "ChessBase"]
[SourceQuality "1"]
[TimeControl "40/5400+30:900+30"]

1. d4 {[%emt 0:05:56]} f5 {[%emt 0:00:14]} 2. Nc3 {[%emt 0:04:07]} Nf6 {[%emt 0:00:11]} 3. g3 {[%emt 0:01:23]} d5 {[%emt 0:01:27]} 4. Bg2 {[%emt 0:00:37]} e6 {[%emt 0:00:09]} 5. Nf3 {[%emt 0:01:54]} Be7 {[%emt 0:02:54]} 6. O-O {[%emt 0:02:40]} O-O {[%emt 0:00:07]} 7. Bf4 {[%emt 0:01:48]} b6 {[%emt 0:01:14]} 8. Nb5 {[%emt 0:05:16]} Na6 {[%emt 0:00:47]} 9. c4 {[%emt 0:00:50]} c6 {[%emt 0:01:36]} 10. Nc3 {[%emt 0:04:58]} Bb7 {[%emt 0:00:20]} 11. Ne5 {[%emt 0:01:02]} Ne4 {[%emt 0:06:06]} 12. Nxe4 {[%emt 0:02:04]} dxe4 {[%emt 0:00:32]} 13. h4 {[%emt 0:05:46]} c5 {[%emt 0:05:59]} 14. dxc5 {[%emt 0:04:29]} Bxc5 {[%emt 0:01:08]} 15. Nd7 {[%emt 0:01:10]} Rf7 {[%emt 0:06:15]} 16. Nxc5 {[%emt 0:00:37]} Nxc5 {[%emt 0:00:44]} 17. b4 {[%emt 0:02:00]} Rd7 {[%emt 0:06:42]} 18. Qc2 {[%emt 0:01:10]} Na6 {[%emt 0:00:08]} 19. a3 {[%emt 0:00:31]} Rc8 {[%emt 0:01:07]} 20. Rfd1 {[%emt 0:01:49]} Nb8 {[%emt 0:10:33]} 21. e3 {[%emt 0:13:00]} Nc6 {[%emt 0:11:57]} 22. Rxd7 {[%emt 0:01:17]} Qxd7 {[%emt 0:00:07]} 23. Rd1 {[%emt 0:00:09]} Qe8 {[%emt 0:00:14]} 24. Bd6 {[%emt 0:00:47]} Nd8 {[%emt 0:02:28]} 25. Be5 {[%emt 0:02:24]} Nf7 {[%emt 0:05:26]} 26. Bb2 {[%emt 0:02:53]} Qc6 {[%emt 0:10:22]} 27. Bf1 {[%emt 0:01:22]} Qc7 {[%emt 0:03:29]} 28. Qc3 {[%emt 0:02:00]} e5 {[%emt 0:01:58]} 29. a4 {[%emt 0:05:49]} Bc6 {[%emt 0:02:11]} 30. b5 {[%emt 0:01:50]} Bd7 {[%emt 0:05:26]} 31. c5 {[%emt 0:01:12]} bxc5 {[%emt 0:00:05]} 32. Bc4 {[%emt 0:00:10]} Kf8 {[%emt 0:01:41]} 33. a5 {[%emt 0:01:43]} Re8 {[%emt 0:06:16]} 34. Rd5 {[%emt 0:02:13]} Be6 {[%emt 0:05:25]} 35. Rxc5 {[%emt 0:01:15]} Qd6 {[%emt 0:00:10]} 36. Be2 {[%emt 0:00:55]} Kg8 {[%emt 0:00:22]} 37. Rc6 {[%emt 0:01:36]} Qd5 {[%emt 0:00:19]} 38. Rc7 {[%emt 0:00:26]} Qa8 {[%emt 0:01:37]} 39. Bc4 {[%emt 0:00:55]} Bd5 {[%emt 0:00:49]} 40. Bb3 {[%emt 0:00:00]} Rd8 {[%emt 0:00:00]} 41. b6 {[%emt 0:03:17]} axb6 {[%emt 0:03:48]} 42. axb6 {[%emt 0:01:04]} Qa6 {[%emt 0:04:02]} 43. b7 {[%emt 0:00:53]} Be6 {[%emt 0:05:39]} 44. Rxf7 {[%emt 0:01:03]} Kxf7 {[%emt 0:03:14]} 45. Qc7+ {[%emt 0:00:09]} Ke8 {[%emt 0:01:43]} 46. Qxd8+ {[%emt 0:00:16]} Kxd8 {[%emt 0:00:06]} 47. b8=Q+ {[%emt 0:00:08]} 1-0

[Event "Icelandic Team-ch Kvika Leagu 2023-24"]
[Site "Reykjavik"]
[Date "2024.03.01"]
[Round "7"]
[White "Ragnarsson, Dagur"]
[Black "Thorhallsson, Throstur"]
[Result "1-0"]
[ECO "D46"]
[WhiteElo "2337"]
[BlackElo "2388"]
[Annotator "RC"]
[PlyCount "59"]
[EventDate "2024.02.29"]
[EventType "team-tourn"]
[EventCountry "ISL"]
[SourceTitle "playchess.com"]
[Source "ChessBase"]
[SourceQuality "1"]
[TimeControl "40/5400+30:900+30"]

1. d4 {[%emt 0:00:03]} d5 {[%emt 0:07:49]} 2. c4 {[%emt 0:01:48]} e6 {[%emt 0:00:49]} 3. Nc3 {[%emt 0:01:01]} Nf6 {[%emt 0:00:13]} 4. Nf3 {[%emt 0:00:23]} c6 {[%emt 0:00:13]} 5. e3 {[%emt 0:03:26]} Nbd7 {[%emt 0:00:49]} 6. Qc2 {[%emt 0:00:09]} Bd6 {[%emt 0:00:20]} 7. Be2 {[%emt 0:00:42]} O-O {[%emt 0:00:10]} 8. O-O {[%emt 0:00:07]} dxc4 {[%emt 0:00:53]} 9. Bxc4 {[%emt 0:00:11]} b5 {[%emt 0:00:44]} 10. Bd3 {[%emt 0:00:08]} Bb7 {[%emt 0:01:24]} 11. Ng5 {[%emt 0:00:48]} h6 {[%emt 0:04:53]} 12. Nge4 {[%emt 0:02:51]} Be7 {[%emt 0:01:48]} 13. Rb1 {[%emt 0:03:59]} Nd5 {[%emt 0:12:01]} 14. Nxd5 {[%emt 0:05:52]} exd5 {[%emt 0:05:45]} 15. Ng3 {[%emt 0:01:44]} Re8 {[%emt 0:01:18]} 16. f3 {[%emt 0:18:08]} a6 {[%emt 0:06:54]} 17. Nf5 {[%emt 0:07:49]} Bf8 {[%emt 0:01:13]} 18. Qf2 {[%emt 0:00:05]} g6 {[%emt 0:03:25]} 19. Qg3 {[%emt 0:06:11]} Nf6 {[%emt 0:04:06]} 20. Nh4 {[%emt 0:08:24]} Nh5 {[%emt 0:05:38]} 21. Qf2 {[%emt 0:01:12]} c5 {[%emt 0:07:37]} 22. g4 {[%emt 0:04:08]} Ng7 {[%emt 0:00:52]} 23. f4 {[%emt 0:06:22]} Qf6 {[%emt 0:05:43]} 24. f5 {[%emt 0:01:57]} g5 {[%emt 0:02:15]} 25. Nf3 {[%emt 0:00:33]} Qb6 {[%emt 0:06:30]} 26. h4 {[%emt 0:01:07]} f6 {[%emt 0:00:19]} 27. hxg5 {[%emt 0:00:14]} hxg5 {[%emt 0:00:16]} 28. Nxg5 {[%emt 0:00:35]} c4 {[%emt 0:04:41]} 29. Qh2 {[%emt 0:02:20]} fxg5 {[%emt 0:00:28]} 30. f6 {[%emt 0:00:07]} 1-0

[Event "Icelandic Team-ch Kvika Leagu 2023-24"]
[Site "Reykjavik"]
[Date "2024.03.02"]
[Round "7"]
[White "Johannesson, Ingvar Thor"]
[Black "Bjornsson, Sigurbjorn"]
[Result "0-1"]
[ECO "E99"]
[WhiteElo "2313"]
[BlackElo "2305"]
[Annotator "RC"]
[PlyCount "104"]
[EventDate "2024.02.29"]
[EventType "team-tourn"]
[EventCountry "ISL"]
[SourceTitle "playchess.com"]
[Source "ChessBase"]
[SourceQuality "1"]
[TimeControl "40/5400+30:900+30"]

1. d4 {[%emt 0:00:02]} Nf6 {[%emt 0:00:20]} 2. c4 {[%emt 0:00:13]} g6 {[%emt 0:00:18]} 3. Nc3 {[%emt 0:00:25]} Bg7 {[%emt 0:00:05]} 4. e4 {[%emt 0:00:30]} d6 {[%emt 0:00:05]} 5. Be2 {[%emt 0:00:40]} O-O {[%emt 0:00:09]} 6. Nf3 {[%emt 0:00:06]} e5 {[%emt 0:00:38]} 7. O-O {[%emt 0:00:12]} Nc6 {[%emt 0:00:24]} 8. d5 {[%emt 0:00:19]} Ne7 {[%emt 0:00:05]} 9. Ne1 {[%emt 0:00:13]} Nd7 {[%emt 0:00:41]} 10. Nd3 {[%emt 0:00:35]} f5 {[%emt 0:00:38]} 11. Bd2 {[%emt 0:00:38]} Nf6 {[%emt 0:00:50]} 12. f3 {[%emt 0:00:11]} f4 {[%emt 0:00:33]} 13. c5 {[%emt 0:00:26]} g5 {[%emt 0:00:24]} 14. Rc1 {[%emt 0:00:13]} Ng6 {[%emt 0:00:43]} 15. Nb5 {[%emt 0:00:35]} Rf7 {[%emt 0:00:21]} 16. Ba5 {[%emt 0:00:23]} b6 {[%emt 0:00:42]} 17. cxd6 {[%emt 0:00:03]} cxd6 {[%emt 0:00:42]} 18. Be1 {[%emt 0:00:03]} a6 {[%emt 0:00:30]} 19. Nc3 {[%emt 0:03:18]} a5 {[%emt 0:00:31]} 20. Bf2 {[%emt 0:06:13]} Bf8 {[%emt 0:01:56]} 21. Na4 {[%emt 0:07:26]} Rb8 {[%emt 0:04:55]} 22. Nxb6 {[%emt 0:16:43]} Ba6 {[%emt 0:08:59]} 23. Nc4 {[%emt 0:01:25]} g4 {[%emt 0:01:27]} 24. Be1 {[%emt 0:06:26]} g3 {[%emt 0:04:00]} 25. Nxa5 {[%emt 0:38:30]} gxh2+ {[%emt 0:09:44]} 26. Kh1 {[%emt 0:00:07]} Nh5 {[%emt 0:02:58]} 27. Nxe5 {[%emt 0:10:34]} dxe5 {[%emt 0:41:01]} 28. Bxa6 {[%emt 0:00:08]} Rxb2 {[%emt 0:00:13]} 29. Nc6 {[%emt 0:02:27]} Qg5 {[%emt 0:04:16]} 30. Rc2 {[%emt 0:00:16]} Rxc2 {[%emt 0:01:54]} 31. Qxc2 {[%emt 0:00:01]} Rg7 {[%emt 0:01:25]} 32. Bc8 {[%emt 0:00:29]} Ng3+ {[%emt 0:03:13]} 33. Bxg3 {[%emt 0:01:07]} fxg3 {[%emt 0:00:10]} 34. Be6+ {[%emt 0:01:51]} Kh8 {[%emt 0:00:09]} 35. Qc3 {[%emt 0:00:36]} Bd6 {[%emt 0:07:55]} 36. a4 {[%emt 0:00:53]} h5 {[%emt 0:00:40]} 37. Bf5 {[%emt 0:01:31]} Nf4 {[%emt 0:01:24]} 38. Rd1 {[%emt 0:01:59]} h4 {[%emt 0:00:55]} 39. Nxe5 {[%emt 0:00:36]} Bxe5 {[%emt 0:03:20]} 40. Qc8+ {[%emt 0:00:00]} Rg8 {[%emt 0:00:00]} 41. Qd7 {[%emt 0:01:55]} Qh6 {[%emt 0:09:15]} 42. Qc6 {[%emt 0:00:41]} Qxc6 {[%emt 0:01:01]} 43. dxc6 {[%emt 0:00:03]} Ra8 {[%emt 0:01:10]} 44. c7 {[%emt 0:00:22]} Bxc7 {[%emt 0:00:13]} 45. e5 {[%emt 0:00:19]} Bxe5 {[%emt 0:00:14]} 46. Rc1 {[%emt 0:06:48]} Rxa4 {[%emt 0:01:05]} 47. Bc2 {[%emt 0:02:01]} Ra1 {[%emt 0:01:23]} 48. Rxa1 {[%emt 0:01:24]} Bxa1 {[%emt 0:00:06]} 49. Bf5 {[%emt 0:00:16]} Nd5 {[%emt 0:01:04]} 50. f4 {[%emt 0:00:18]} Ne3 {[%emt 0:00:09]} 51. Bh3 {[%emt 0:01:05]} Nd1 {[%emt 0:00:08]} 52. f5 {[%emt 0:00:03]} Nf2# {[%emt 0:00:13]} 0-1